bitfinex-derivatives/quotes_SOLF0:USTF0_20250216
["timestamp","ask_amount","ask_price","bid_price","bid_amount"]
[1739747102973,0.03563121,188.52,188.48,0.03621795]
[1739747103470,194.0,188.62,188.49,21.87866791]
[1739747103870,312.92,188.69,188.52,21.87866791]
[1739747104071,0.2949,188.71,188.55,21.87866791]
[1739747104469,21.87866791,188.76,188.58,21.87866791]
[1739747104666,21.87866791,188.76,188.59,1.6953]
[1739747104870,0.03940467,188.65,188.62,5.3001]
[1739747105075,0.03940467,188.65,188.59,1.6953]
[1739747105076,21.87866791,188.73,188.59,1.6953]
[1739747105269,5.2998,188.64,188.62,0.03358392]
[1739747105471,0.03920548,188.65,188.62,0.03358392]
[1739747105678,21.87866791,188.64,188.53,3.304]
[1739747105977,5.3001,188.63,188.62,0.03932958]
[1739747106179,21.87866791,188.64,188.46,21.87866791]
[1739747106375,21.87866791,188.6,188.47,5.3043]
[1739747106574,21.87866791,188.57,188.43,21.87866791]
[1739747107285,0.0377693,188.52,188.48,0.03800922]
[1739747107678,21.87866791,188.54,188.42,1.5919]
[1739747107878,0.04036434,188.52,188.48,0.03869889]
[1739747108283,5.304,188.49,188.48,0.03869889]
[1739747108476,0.04036434,188.52,188.48,0.03869889]
[1739747109281,5.3043,188.48,188.41,7.3211539]
[1739747109879,21.87866791,188.51,188.41,7.3211539]
[1739747110189,5.3052,188.45,188.39,1.5368]
[1739747110482,21.91705995,188.48,188.44,0.03819824]
[1739747110677,21.87866791,188.48,188.37,1.6028]
[1739747110878,21.91666768,188.48,188.44,0.0346748]
[1739747111181,21.91666768,188.48,188.37,1.6028]
[1739747111381,5.3056,188.44,188.37,1.6028]
[1739747111581,194.0,188.5,188.37,1.6028]
[1739747111783,21.87866791,188.58,188.4,21.87866791]
[1739747111979,21.87866791,188.61,188.43,21.87866791]
[1739747112281,21.87866791,188.58,188.44,1.6988]
[1739747112487,0.04076392,188.54,188.5,0.04048721]
[1739747113094,5.304,188.5,188.38,1.6078]
[1739747113285,5.304,188.5,188.41,5.3062]
[1739747113485,21.87866791,188.55,188.4,21.87866791]
[1739747113686,5.3026,188.54,188.45,5.3049]
[1739747113881,21.87866791,188.55,188.4,21.87866791]
[1739747114089,194.0,188.57,188.4,21.87866791]
[1739747114286,0.03903777,188.49,188.46,0.03471411]
[1739747114792,0.03948175,188.49,188.46,0.03471411]
[1739747117690,5.3043,188.48,188.46,0.03471411]
[1739747118391,5.3046,188.47,188.46,0.03471411]
[1739747118990,5.3044,188.48,188.46,0.03471411]
[1739747119494,0.03948175,188.49,188.46,0.03471411]
[1739747121496,194.0,188.57,188.46,0.03471411]
[1739747121696,5.302,188.57,188.5,5.3037]
[1739747121900,21.87866791,188.61,188.47,3.3011]
[1739747122592,21.87866791,188.58,188.47,3.3011]
[1739747122799,21.87866791,188.55,188.52,0.03919166]
[1739747122996,5.3029,188.53,188.52,0.03919166]
[1739747123196,21.87866791,188.55,188.41,1.6598]
[1739747123391,0.0348278,188.54,188.51,0.03508071]
[1739747123797,21.87866791,188.58,188.43,21.87866791]
[1739747124002,0.04008643,188.54,188.51,0.03621722]
[1739747125496,5.3032,188.52,188.51,0.03621722]
[1739747125691,0.04008643,188.54,188.51,0.03621722]
[1739747126701,194.0,188.61,188.51,0.03621722]
[1739747126897,21.87866791,188.65,188.51,0.03621722]
[1739747127203,21.87866791,188.65,188.5,1.5371]
[1739747127701,5.3003,188.63,188.54,5.3026]
[1739747128009,0.03703387,188.59,188.56,0.03784924]
[1739747128199,194.4457,188.72,188.55,21.87866791]
[1739747128399,21.87866791,188.7,188.52,21.87866791]
[1739747128595,21.87866791,188.67,188.52,21.87866791]
[1739747128904,5.3004,188.62,188.53,5.3028]
[1739747129203,21.87866791,188.67,188.5,1.5371]
[1739747129407,0.03797359,188.59,188.57,5.3017]
[1739747129702,21.87866791,188.67,188.52,21.87866791]
[1739747129899,0.03944973,188.6,188.56,0.03763376]
[1739747131804,21.87866791,188.57,188.47,1.6474]
[1739747132202,5.3029,188.54,188.47,1.6474]
[1739747132397,21.87866791,188.57,188.47,1.6474]
[1739747132801,194.3963,188.62,188.47,1.6474]
[1739747132802,21.87866791,188.6,188.47,1.6474]
[1739747133001,0.03781911,188.54,188.5,0.04027192]
[1739747133206,194.3963,188.62,188.47,1.6474]
[1739747133507,0.03729574,188.54,188.5,0.03427688]
[1739747133706,5.3018,188.58,188.49,5.3038]
[1739747134004,194.3963,188.62,188.49,21.91243526]
[1739747134005,0.0378884,188.53,188.49,21.91243526]
[1739747134198,194.0,188.62,188.49,21.87866791]
[1739747134906,5.3007,188.61,188.49,21.87866791]
[1739747135207,194.0,188.62,188.49,21.87866791]
[1739747135409,0.03745885,188.57,188.53,0.03981624]
[1739747135799,0.03745885,188.57,188.53,5.34251624]
[1739747136199,0.03745885,188.57,188.53,0.03981624]
[1739747136403,0.03745885,188.57,188.53,1.65461624]
[1739747136806,0.03745885,188.57,188.55,5.3023]
[1739747137406,0.03745885,188.57,188.53,1.65461624]
[1739747138105,0.03745885,188.57,188.54,5.3026]
[1739747138903,194.0,188.62,188.53,1.65461624]
[1739747139099,194.0,188.62,188.56,5.3021]
[1739747139305,194.0,188.62,188.53,1.6148]
[1739747140007,5.3015,188.59,188.53,1.6148]
[1739747140206,0.03489123,188.59,188.56,0.03846258]
[1739747141205,5.3018,188.57,188.56,0.03846258]
[1739747142601,5.3034,188.52,188.49,1.5515]
[1739747142802,21.87866791,188.58,188.49,1.5515]
[1739747143210,0.291,188.6,188.44,1.6615]
[1739747143211,5.304,188.5,188.44,1.6615]
[1739747143411,21.87866791,188.55,188.44,1.6615]
[1739747143711,5.3043,188.49,188.44,1.6615]
[1739747143912,5.3043,188.49,188.48,0.03828616]
[1739747144114,0.03709143,188.51,188.42,3.162]
[1739747144312,0.03709143,188.51,188.47,0.03348562]
[1739747148210,5.3043,188.48,188.47,0.03348562]
[1739747149409,21.87866791,188.49,188.34,21.87866791]
[1739747149612,5.306,188.43,188.36,1.6469]
[1739747150011,5.306,188.43,188.36,6.9544]
[1739747150318,194.2917,188.51,188.36,1.6469]
[1739747150718,0.03973054,188.45,188.42,0.03860804]
[1739747152113,0.03973054,188.45,188.42,5.34460804]
[1739747152622,194.0,188.51,188.42,0.03860804]
[1739747152919,0.2917,188.57,188.43,1.6844]
[1739747153317,5.3033,188.52,188.43,1.6844]
[1739747153920,0.0354521,188.49,188.46,0.03385987]
[1739747154222,0.0354521,188.49,188.46,5.33875987]
[1739747155113,0.0354521,188.49,188.46,0.03385987]
[1739747155914,215.99176791,188.58,188.46,0.03385987]
[1739747155915,194.0,188.58,188.46,0.03385987]
[1739747156116,194.0,188.58,188.43,23.56306791]
[1739747156521,5.3027,188.54,188.43,23.56306791]
[1739747156716,194.0,188.58,188.43,23.56306791]
[1739747157112,0.04036766,188.52,188.49,0.03957579]
[1739747160225,5.3038,188.5,188.49,0.03957579]
[1739747161023,5.3051,188.46,188.4,6.9432]
[1739747161224,21.91903557,188.52,188.4,1.6368]
[1739747161225,21.87866791,188.52,188.4,1.6368]
[1739747161425,21.87866791,188.55,188.4,1.6368]
[1739747161624,5.3035,188.51,188.4,23.51546791]
[1739747161821,21.87866791,188.55,188.4,23.51546791]
[1739747162125,21.87866791,188.52,188.4,1.6368]
[1739747162325,0.03348628,188.49,188.46,0.04041736]
[1739747163025,21.91215419,188.49,188.38,1.5502]
[1739747163226,21.91215419,188.49,188.37,7.3211539]
[1739747163418,21.91215419,188.49,188.35,3.2303]
[1739747163419,21.87866791,188.49,188.35,3.2303]
[1739747163622,0.1133,188.51,188.35,3.2303]
[1739747164222,0.0379079,188.45,188.41,0.03905989]
[1739747166124,0.0379079,188.45,188.41,5.34505989]
[1739747166428,0.0379079,188.45,188.41,0.03905989]
[1739747167922,5.3057,188.44,188.41,0.03905989]
[1739747168125,0.0379079,188.45,188.41,0.03905989]
[1739747168527,5.3055,188.44,188.41,0.03905989]
[1739747169029,0.0379079,188.45,188.41,0.03905989]
[1739747169829,5.306,188.42,188.41,0.03905989]
[1739747170631,0.0379079,188.45,188.41,0.03905989]
[1739747171830,5.3057,188.44,188.41,0.03905989]
[1739747172636,0.0379079,188.45,188.41,0.03905989]
[1739747173630,5.306,188.42,188.41,0.03905989]
[1739747175630,0.0379079,188.45,188.41,0.03905989]
[1739747175831,5.3056,188.44,188.41,0.03905989]
[1739747176538,5.3058,188.43,188.41,0.03905989]
[1739747176734,0.0379079,188.45,188.41,0.03905989]
[1739747179031,5.3055,188.44,188.41,0.03905989]
[1739747179334,0.0379079,188.45,188.41,0.03905989]
[1739747180646,5.3431079,188.45,188.41,0.03905989]
[1739747181339,0.0379079,188.45,188.41,0.03905989]
[1739747181943,5.3055,188.44,188.41,0.03905989]
[1739747182141,0.0379079,188.45,188.41,0.03905989]
[1739747182345,0.0379079,188.45,188.41,13.72846308]
[1739747183245,194.0,188.5,188.41,13.72846308]
[1739747183445,5.3033,188.52,188.41,13.72846308]
[1739747183848,5.3038,188.5,188.41,13.72846308]
[1739747184041,13.68940319,188.54,188.41,13.68940319]
[1739747184346,0.04077428,188.49,188.46,0.03836618]
[1739747184844,5.34507428,188.49,188.46,0.03836618]
[1739747185247,0.04077428,188.49,188.46,0.03836618]
[1739747185548,5.3046,188.47,188.46,0.03836618]
[1739747186141,0.04077428,188.49,188.46,0.03836618]
[1739747186343,5.34507428,188.49,188.46,0.03836618]
[1739747186547,0.04077428,188.49,188.46,0.03836618]
[1739747187946,0.04077428,188.49,188.47,5.3044]
[1739747188145,207.68940319,188.58,188.48,13.68940319]
[1739747188350,13.68940319,188.61,188.48,13.68940319]
[1739747188743,13.68940319,188.61,188.5,5.3038]
[1739747188944,13.68940319,188.61,188.48,13.68940319]
[1739747189144,5.3021,188.56,188.49,5.3038]
[1739747189351,5.3359952,188.56,188.53,0.03567493]
[1739747190150,0.0338952,188.56,188.53,0.03567493]
[1739747190849,0.0338952,188.56,188.53,5.33857493]
[1739747191649,0.0338952,188.56,188.54,5.3026]
[1739747192154,194.0,188.64,188.54,13.68940319]
[1739747192347,13.68940319,188.67,188.55,1.6404]
[1739747192746,5.2998,188.65,188.55,1.6404]
[1739747193453,0.03815994,188.62,188.58,0.03835545]
[1739747194652,5.301,188.6,188.58,0.03835545]
[1739747195052,0.03815994,188.62,188.58,0.03835545]
[1739747195249,5.3012,188.59,188.58,0.03835545]
[1739747195455,13.68940319,188.61,188.45,13.68940319]
[1739747195755,13.68940319,188.57,188.45,13.68940319]
[1739747195954,13.68940319,188.57,188.44,3.261]
[1739747195955,13.68940319,188.54,188.44,3.261]
[1739747196256,5.304,188.5,188.44,3.261]
[1739747196549,0.03936748,188.49,188.45,0.0337394]
[1739747198447,5.34356748,188.49,188.45,0.0337394]
[1739747199155,0.03936748,188.49,188.45,0.0337394]
[1739747199546,5.3049,188.46,188.45,0.0337394]
[1739747200753,5.306,188.43,188.38,1.5655]
[1739747200954,21.88749459,188.47,188.38,1.5655]
[1739747201352,5.3057,188.44,188.38,1.5655]
[1739747201855,0.03611973,188.43,188.39,0.03467101]
[1739747202362,5.34191973,188.43,188.39,0.03467101]
[1739747203055,0.03611973,188.43,188.39,0.03467101]
[1739747203858,5.34181973,188.43,188.39,0.03467101]
[1739747204053,0.03611973,188.43,188.39,0.03467101]
[1739747204959,0.03611973,188.43,188.4,5.3065]
[1739747205462,0.03611973,188.43,188.39,5.34147101]
[1739747205855,97.0,188.62,188.39,0.03467101]
[1739747206057,37.77969459,188.73,188.38,1.5655]
[1739747206058,194.5076,188.58,188.38,1.5655]
[1739747206956,5.3046,188.48,188.38,1.5655]
[1739747207156,0.03805795,188.47,188.44,0.03757126]
[1739747207958,194.5076,188.58,188.44,0.03757126]
[1739747208159,194.5076,188.58,188.44,1.6467]
[1739747208353,5.303,188.53,188.47,5.3043]
[1739747208549,194.5076,188.58,188.47,5.3043]
[1739747209062,0.03440452,188.54,188.51,0.03929809]
[1739747209460,5.303,188.53,188.51,0.03929809]
[1739747209759,0.03440452,188.54,188.51,0.03929809]
[1739747210156,0.03440452,188.54,188.38,1.5655]
[1739747210157,21.88749459,188.53,188.38,1.5655]
[1739747210356,0.03440452,188.54,188.38,3.2122]
[1739747210357,21.88749459,188.5,188.38,3.2122]
[1739747210860,5.305,188.46,188.39,5.3066]
[1739747211455,0.03469523,188.44,188.41,0.03919852]
[1739747215279,194.0,188.54,188.41,0.03919852]
[1739747215476,5.303,188.53,188.46,5.3047]
[1739747215773,5.303,188.53,188.43,21.88749459]
[1739747216076,5.3021,188.56,188.49,5.304]
[1739747216375,0.03704417,188.54,188.51,0.03404641]
[1739747217276,5.3032,188.52,188.51,0.03404641]
[1739747218273,5.33964417,188.54,188.51,0.03404641]
[1739747218879,5.303,188.53,188.51,0.03404641]
[1739747219078,0.03704417,188.54,188.51,0.03404641]
[1739747220882,199.301,188.6,188.51,0.03404641]
[1739747221276,194.0,188.6,188.51,0.03404641]
[1739747221981,5.3018,188.57,188.51,0.03404641]
[1739747222180,0.03600248,188.57,188.51,0.03404641]
[1739747223081,5.3026,188.55,188.51,0.03404641]
[1739747224182,0.03600248,188.57,188.51,0.03404641]
[1739747225183,5.3024,188.55,188.51,0.03404641]
[1739747226187,5.3022,188.56,188.51,0.03404641]
[1739747226388,0.03600248,188.57,188.51,0.03404641]
[1739747227289,5.3029,188.54,188.51,0.03404641]
[1739747227785,0.03600248,188.57,188.51,0.03404641]
[1739747228984,5.33800248,188.57,188.51,5.33744641]
[1739747229289,0.03600248,188.57,188.51,5.33744641]
[1739747229484,0.03600248,188.57,188.51,0.03404641]
[1739747230685,0.03600248,188.57,188.51,5.33734641]
[1739747231188,5.3021,188.56,188.51,0.03404641]
[1739747231689,0.03600248,188.57,188.51,0.03404641]
[1739747231885,0.03600248,188.57,188.51,5.33744641]
[1739747232383,5.3023,188.56,188.51,0.03404641]
[1739747232780,0.03600248,188.57,188.51,0.03404641]
[1739747232979,0.03600248,188.57,188.51,5.33744641]
[1739747233380,5.33800248,188.57,188.51,5.33744641]
[1739747233683,0.03600248,188.57,188.52,5.303]
[1739747233889,0.03600248,188.57,188.51,0.03404641]
[1739747234597,0.03600248,188.57,188.52,13.66480245]
[1739747236596,0.03600248,188.57,188.55,5.3023]
[1739747236891,5.3004,188.62,188.52,13.66480245]
[1739747237091,5.3004,188.62,188.57,5.3015]
[1739747237286,5.3004,188.62,188.52,13.66480245]
[1739747237485,13.66480245,188.67,188.52,13.66480245]
[1739747238097,0.02020235,188.61,188.58,0.03535449]
[1739747238295,13.66480245,188.64,188.58,0.03535449]
[1739747238493,5.3014,188.59,188.58,0.03535449]
[1739747239094,0.02020235,188.61,188.58,0.03535449]
[1739747241005,5.32090235,188.61,188.58,0.03535449]
[1739747241296,0.02020235,188.61,188.58,5.33685449]
[1739747241491,0.02020235,188.61,188.58,0.03535449]
[1739747241898,0.02020235,188.61,188.59,5.301]
[1739747242089,0.02020235,188.61,188.58,0.03535449]
[1739747243593,194.0,188.68,188.58,0.03535449]
[1739747243789,13.66480245,188.7,188.58,0.03535449]
[1739747243990,5.2993,188.66,188.56,4.8708]
[1739747244698,13.66480245,188.7,188.6,5.3007]
[1739747244890,13.66480245,188.7,188.59,0.03935054]
[1739747245096,13.66480245,188.67,188.56,4.8708]
[1739747245297,13.66480245,188.64,188.63,2.511e-05]
[1739747245699,18.96460245,188.64,188.63,2.511e-05]
[1739747245895,18.96460245,188.64,188.49,13.66480245]
[1739747245896,27.3296049,188.64,188.49,13.66480245]
[1739747246101,13.66480245,188.6,188.49,1.6326]
[1739747246301,5.3015,188.58,188.49,1.6326]
[1739747246502,13.66480245,188.6,188.5,5.3038]
[1739747247002,13.66480245,188.64,188.49,15.29740245]
[1739747247204,0.03512512,188.57,188.53,0.03962012]
[1739747247506,0.03512512,188.57,188.53,5.34252012]
[1739747247710,13.66480245,188.64,188.53,0.03962012]
[1739747247903,13.66480245,188.67,188.53,0.03962012]
[1739747248303,13.66480245,188.67,188.52,13.66480245]
[1739747248506,13.66480245,188.67,188.55,13.66480245]
[1739747248703,194.0,188.69,188.55,13.66480245]
[1739747248901,194.0,188.69,188.6,5.3009]
[1739747248902,5.2989,188.68,188.6,5.3009]
[1739747249102,5.2989,188.68,188.59,0.03968014]
[1739747249402,5.2989,188.68,188.59,1.67508014]
[1739747250103,5.299,188.67,188.61,5.3007]
[1739747250503,5.299,188.67,188.62,0.03868295]
[1739747250800,5.2987,188.69,188.62,0.03868295]
[1739747251003,13.66480245,188.73,188.59,1.6354]
[1739747251208,13.66480245,188.73,188.64,0.03992101]
[1739747251411,5.2989,188.68,188.64,0.03992101]
[1739747252406,5.299,188.67,188.64,0.03992101]
[1739747252603,13.66480245,188.73,188.64,0.03992101]
[1739747253910,5.2991,188.67,188.64,0.03992101]
[1739747254209,13.66480245,188.7,188.64,0.03992101]
[1739747254811,13.66480245,188.73,188.64,0.03992101]
[1739747256208,5.2985,188.69,188.64,0.03992101]
[1739747257311,5.2987,188.68,188.64,0.03992101]
[1739747257716,13.66480245,188.73,188.64,0.03992101]
[1739747260109,5.2976,188.72,188.65,5.2993]
[1739747260415,194.0,188.75,188.64,13.70472346]
[1739747260603,13.66480245,188.76,188.64,13.70472346]
[1739747260604,13.66480245,188.76,188.65,1.6461]
[1739747260808,5.2973,188.73,188.67,5.2988]
[1739747261008,13.66480245,188.76,188.69,0.03346805]
[1739747261414,5.2968,188.75,188.69,5.33186805]
[1739747261810,13.66480245,188.76,188.69,5.33186805]
[1739747262010,5.2965,188.76,188.7,5.2981]
[1739747263806,13.66480245,188.79,188.69,0.03346805]
[1739747264104,5.2962,188.77,188.71,5.2976]
[1739747264506,13.66480245,188.79,188.69,1.6619]
[1739747264709,5.2968,188.75,188.72,0.04035326]
[1739747265312,13.66480245,188.79,188.72,0.04035326]
[1739747266013,5.297,188.74,188.72,0.04035326]
[1739747266912,5.2973,188.73,188.72,0.04035326]
[1739747272321,18.96210245,188.73,188.72,0.04035326]
[1739747272519,5.2985,188.69,188.65,1.6461]
[1739747272720,5.2985,188.69,188.61,13.66480245]
[1739747273510,5.2985,188.69,188.63,5.3001]
[1739747273712,0.04035326,188.67,188.63,5.33824366]
[1739747274215,0.04035326,188.67,188.63,0.03814366]
[1739747274814,5.2995,188.66,188.63,0.03814366]
[1739747275017,0.04035326,188.67,188.63,0.03814366]
[1739747275916,0.04035326,188.67,188.64,5.2998]
[1739747277022,0.04035326,188.67,188.66,5.2993]
[1739747277921,0.04035326,188.67,188.63,0.03814366]
[1739747279817,5.2976,188.72,188.63,0.03814366]
[1739747280022,13.66480245,188.79,188.65,13.66480245]
[1739747280323,5.2968,188.75,188.71,5.2979]
[1739747280524,13.66480245,188.79,188.71,5.2979]
[1739747280925,13.66480245,188.79,188.73,0.03936147]
[1739747281126,13.66480245,188.82,188.73,5.33666147]
[1739747281325,13.66480245,188.82,188.73,0.03936147]
[1739747282123,5.2965,188.76,188.73,0.03936147]
[1739747282626,13.66480245,188.82,188.73,0.03936147]
[1739747283325,5.2966,188.76,188.73,0.03936147]
[1739747283525,13.66480245,188.82,188.73,0.03936147]
[1739747284328,5.2966,188.76,188.73,0.03936147]
[1739747285327,13.66480245,188.82,188.73,0.03936147]
[1739747285627,5.2968,188.75,188.73,0.03936147]
[1739747287031,5.297,188.74,188.73,0.03936147]
[1739747287531,13.66480245,188.79,188.73,0.03936147]
[1739747287724,13.66480245,188.82,188.73,0.03936147]
[1739747288123,5.2956,188.8,188.75,5.2967]
[1739747288629,13.66480245,188.82,188.75,5.2967]
[1739747288630,5.2956,188.79,188.75,5.2967]
[1739747288932,5.2956,188.79,188.74,5.297]
[1739747289123,13.66480245,188.82,188.73,0.03936147]
[1739747289325,5.2954,188.8,188.73,0.03936147]
[1739747289527,13.66480245,188.82,188.73,0.03936147]
[1739747289827,5.2951,188.81,188.73,0.03936147]
[1739747290028,13.66480245,188.85,188.71,13.66480245]
[1739747290229,13.66480245,188.82,188.75,0.03737895]
[1739747290929,5.296,188.78,188.75,0.03737895]
[1739747292132,5.2954,188.8,188.75,5.33407895]
[1739747292829,13.66480245,188.88,188.75,0.03737895]
[1739747293035,13.66480245,188.88,188.77,13.66480245]
[1739747293233,13.66480245,188.88,188.79,0.03611865]
[1739747295525,13.66480245,188.88,188.79,5.33151865]
[1739747295729,13.66480245,188.88,188.79,0.03611865]
[1739747296125,5.2942,188.85,188.79,0.03611865]
[1739747296333,13.66480245,188.88,188.79,0.03611865]
[1739747296636,5.2942,188.85,188.79,5.33171865]
[1739747296834,0.4107,188.9,188.79,0.03611865]
[1739747297733,5.2935,188.87,188.79,0.03611865]
[1739747298236,0.4107,188.9,188.79,0.03611865]
[1739747298638,5.2933,188.88,188.82,5.2948]
[1739747298837,0.4107,188.9,188.82,5.2948]
[1739747299035,0.4107,188.9,188.83,0.0358998]
[1739747299639,5.2937,188.86,188.83,0.0358998]
[1739747299937,0.4107,188.9,188.83,0.0358998]
[1739747301839,5.2947,188.84,188.83,0.0358998]
[1739747302338,13.66480245,188.85,188.76,3.1406]
[1739747302931,13.66480245,188.85,188.7,29.2767603]
[1739747303127,13.66480245,188.82,188.7,44.53346275]
[1739747303336,0.03518986,188.81,188.77,0.0402753]
[1739747305239,5.2964,188.78,188.77,0.0402753]
[1739747306140,5.296,188.8,188.77,0.0402753]
[1739747306541,0.03518986,188.81,188.77,0.0402753]
[1739747308747,0.03518986,188.81,188.77,5.3366753]
[1739747309246,0.03518986,188.81,188.77,0.0402753]
[1739747309448,0.03518986,188.81,188.78,5.2963]
[1739747309647,0.03518986,188.81,188.77,0.0402753]
[1739747310651,0.03518986,188.81,188.79,5.2958]
[1739747311349,0.03518986,188.81,188.77,1.7329753]
[1739747311551,0.03518986,188.81,188.78,5.2963]
[1739747312447,0.03518986,188.81,188.77,0.0402753]
[1739747313245,5.33078986,188.81,188.77,0.0402753]
[1739747313451,0.03518986,188.81,188.77,0.0402753]
[1739747313846,5.2958,188.8,188.77,0.0402753]
[1739747314448,0.03518986,188.81,188.77,0.0402753]
[1739747317253,5.2963,188.79,188.77,0.0402753]
[1739747318454,5.2964,188.78,188.77,0.0402753]
[1739747318954,5.2962,188.79,188.77,0.0402753]
[1739747319447,0.03518986,188.81,188.77,0.0402753]
[1739747319646,5.2964,188.78,188.77,0.0402753]
[1739747320254,0.03518986,188.81,188.77,0.0402753]
[1739747320947,5.2963,188.79,188.77,0.0402753]
[1739747321650,5.2964,188.78,188.77,0.0402753]
[1739747321949,13.66480245,188.79,188.67,13.66480245]
[1739747322154,13.66480245,188.79,188.65,10.6051539]
[1739747322652,0.5264,188.8,188.65,10.6051539]
[1739747322653,8.73366551,188.75,188.68,8.73366551]
[1739747323050,5.33827665,188.73,188.7,0.03436643]
[1739747323252,0.04047665,188.73,188.7,0.03436643]
[1739747324057,5.2981,188.72,188.7,0.03436643]
[1739747324354,8.73366551,188.71,188.7,0.03436643]
[1739747324648,13.69353471,188.73,188.7,0.03436643]
[1739747325047,5.2983,188.71,188.7,0.03436643]
[1739747325446,5.2995,188.67,188.6,20.52545806]
[1739747326048,13.65305806,188.7,188.6,15.22405806]
[1739747326447,13.65305806,188.73,188.6,15.22405806]
[1739747326652,0.03352585,188.67,188.63,0.03814539]
[1739747327254,5.33302585,188.67,188.63,0.03814539]
[1739747328456,0.03352585,188.67,188.63,0.03814539]
[1739747330255,5.33302585,188.67,188.63,0.03814539]
[1739747331953,0.03352585,188.67,188.63,0.03814539]
[1739747332960,13.68658391,188.67,188.63,0.03814539]
[1739747333156,13.65305806,188.64,188.63,0.03814539]
[1739747333352,18.95335806,188.64,188.63,4.539e-05]
[1739747333562,13.65305806,188.64,188.55,1.6581]
[1739747333757,13.65305806,188.61,188.55,1.6581]
[1739747333956,5.3016,188.6,188.55,1.6581]
[1739747334353,13.65305806,188.61,188.52,3.1996]
[1739747334657,5.3358603,188.59,188.56,0.03970085]
[1739747335060,0.0338603,188.59,188.56,0.03970085]
[1739747339857,5.3357603,188.59,188.56,0.03970085]
[1739747340556,0.0338603,188.59,188.56,0.03970085]
[1739747340758,5.302,188.58,188.56,0.03970085]
[1739747340955,0.0338603,188.59,188.56,0.03970085]
[1739747341157,5.3022,188.58,188.56,0.03970085]
[1739747341557,0.0338603,188.59,188.56,0.03970085]
[1739747341760,13.65305806,188.58,188.56,0.03970085]
[1739747342063,5.3023,188.57,188.56,0.03970085]
[1739747343566,13.65305806,188.58,188.56,0.03970085]
[1739747343762,0.0338603,188.59,188.56,0.03970085]
[1739747344667,13.65305806,188.58,188.56,0.03970085]
[1739747345158,5.3022,188.57,188.56,0.03970085]
[1739747346263,5.3038,188.52,188.46,1.5765]
[1739747346461,13.65305806,188.52,188.46,1.5765]
[1739747346660,8.75850526,188.48,188.46,1.5765]
[1739747347367,8.75850526,188.48,188.39,8.75850526]
[1739747347667,8.75850526,188.48,188.41,8.75850526]
[1739747347867,8.75850526,188.48,188.42,0.03637515]
[1739747348066,0.03550265,188.46,188.42,0.03637515]
[1739747348665,0.03550265,188.46,188.44,5.3058]
[1739747349066,13.68420117,188.54,188.42,13.72057632]
[1739747349267,13.68420117,188.54,188.42,13.68420117]
[1739747349768,5.3042,188.51,188.44,5.3059]
[1739747349968,13.68420117,188.51,188.44,5.3059]
[1739747350172,13.68420117,188.48,188.46,0.03897231]
[1739747350471,15.93,188.61,188.39,13.68420117]
[1739747350472,13.68420117,188.51,188.39,13.68420117]
[1739747350769,194.0,188.54,188.39,13.68420117]
[1739747350770,0.03734193,188.49,188.46,5.3053]
[1739747350969,0.03734193,188.49,188.45,0.03751282]
[1739747351370,5.3048,188.48,188.45,0.03751282]
[1739747351563,0.03734193,188.49,188.45,0.03751282]
[1739747352169,5.34204193,188.49,188.45,0.03751282]
[1739747352572,0.03734193,188.49,188.45,0.03751282]
[1739747354974,0.03734193,188.49,188.46,5.3053]
[1739747355171,0.03734193,188.49,188.46,6.978]
[1739747355473,0.03734193,188.49,188.46,1.6727]
[1739747356870,0.03734193,188.49,188.47,1.6299]
[1739747360479,5.3048,188.48,188.47,1.6299]
[1739747360677,5.3048,188.48,188.46,1.6727]
[1739747361077,5.3051,188.47,188.45,0.03751282]
[1739747361676,0.03734193,188.49,188.45,0.03751282]
[1739747362479,0.03734193,188.49,188.45,5.34291282]
[1739747362677,0.03734193,188.49,188.45,0.03751282]
[1739747363079,194.0,188.54,188.45,13.72171399]
[1739747363672,194.0,188.54,188.5,5.3042]
[1739747363980,13.68420117,188.58,188.45,13.68420117]
[1739747364182,0.03993888,188.54,188.5,0.03760712]
[1739747365174,13.68420117,188.52,188.5,0.03760712]
[1739747366184,5.3039,188.51,188.5,0.03760712]
[1739747366787,18.98790117,188.52,188.5,0.03760712]
[1739747366988,5.3037,188.52,188.5,0.03760712]
[1739747367786,0.03993888,188.54,188.5,0.03760712]
[1739747368485,5.3035,188.53,188.5,0.03760712]
[1739747368983,5.3037,188.52,188.5,0.03760712]
[1739747370385,5.3039,188.51,188.5,0.03760712]
[1739747371690,13.68420117,188.51,188.39,18.99150117]
[1739747371893,13.68420117,188.51,188.38,3.319]